[Event "EICC 2025"]
[Site "Eforie-Nord"]
[Date "2025.03.17"]
[Round "3.10"]
[White "Livaic, Leon"]
[Black "Pasztor, Balazs"]
[Result "0-1"]
[Annotator "TA"]
[ECO "D02"]
[WhiteElo "2562"]
[BlackElo "2407"]
[PlyCount "94"]
[EventDate "2025.03.14"]
[EventType "swiss"]
[EventCountry "ROU"]
[SourceTitle "playchess.com"]
[Source "ChessBase"]
[SourceQuality "1"]
[TimeControl "40/5400+30:1800+30"]

{[%evp 11,94,20,27,6,28,7,19,18,20,17,20,18,45,-5,14,-10,4,-6,5,-6,0,-5,-6,-15,-17,-26,-20,-25,-26,-43,0,-22,-15,-20,8,-27,4,-28,4,0,0,0,0,-47,-51,-127,-128,-249,-160,-154,0,0,0,-24,-14,-12,-9,-11,-33,-93,-72,-127,-120,-164,-23,-64,-22,-287,-295,-446,-434,-650,-663,-655,-620,-592,-380,-423,-326,-1330,-1219,-29996,-29997,-29997,-29993]} 1. Nf3 {[%emt 0:00:06]} d5 {[%emt 0:00:10]} 2. g3 {[%emt 0:00:10]} Nc6 {[%emt 0:00:09]} 3. d4 {[%emt 0:03:00]} Bf5 {[%emt 0:00:11]} 4. Bg2 {[%emt 0:00:23]} Nb4 {[%emt 0:00:13]} 5. Na3 {[%emt 0:00:08]} e6 {[%emt 0:00:09]} 6. O-O {[%emt 0:01:48]} Be7 {[%emt 0:00:22]} 7. Re1 {[%emt 0:05:38] D02: 1 d4 d5 2 Nf3 sidelines, including 2...Nf6 3 g3 and 2...Nf6 3 Bf4.} Nf6 {[%emt 0:06:12]} 8. Bg5 $146 {[%emt 0:00:29]} (8. c3 Nc6 9. Nb1 O-O 10. Bg5 Nd7 11. Bxe7 Nxe7 12. Nbd2 c5 13. e4 Bg4 14. h3 Bh5 15. exd5 Nxd5 {1-0 Dardha,D (2598)-Martirosyan,H (2678) Wch Rapid Samarkand 2023 (11)}) 8... Nc6 {[%emt 0:13:22]} 9. Bxf6 {[%emt 0:12:15] The position is equal.} Bxf6 {[%emt 0:01:48]} 10. c3 {[%emt 0:00:10]} O-O {[%emt 0:02:31]} 11. Nc2 {[%emt 0:02:45]} Be4 {[%emt 0:06:04]} 12. Ne3 {[%emt 0:03:56]} (12. Nd2 $14) 12... g6 {[%emt 0:05:12]} 13. h4 {[%emt 1:06:12]} Re8 {[%emt 0:07:50]} 14. a4 {[%emt 0:00:00]} Bg7 {[%emt 0:06:35]} 15. a5 {[%emt 0:00:00]} Qd6 {[%emt 0:01:03]} 16. Qa4 {[%emt 0:00:00]} Rad8 {[%emt 0:12:20]} 17. Rad1 {[%emt 0:00:00]} b6 {[%emt 0:00:09]} 18. b4 {[%emt 0:00:00]} Ne7 {[%emt 0:03:30]} 19. Nd2 {[%emt 0:00:00]} Bxg2 {[%emt 0:02:20]} 20. Nxg2 {[%emt 0:00:00]} e5 {[%emt 0:04:49]} 21. e3 {[%emt 0:00:00]} h6 {[%emt 0:03:53]} 22. b5 {[%emt 0:00:00]} Nf5 {[%emt 0:03:02]} 23. Rc1 {[%emt 0:00:00]} Qf6 {[%emt 0:02:23]} 24. a6 {[%emt 0:00:00]} g5 {[%emt 0:01:24]} 25. hxg5 {[%emt 0:00:00]} hxg5 {[%emt 0:00:07]} 26. dxe5 {[%emt 0:00:00]} Rxe5 {[%emt 0:00:56]} 27. Red1 {[%emt 0:00:00]} (27. Nf3 $11 Re4 28. Qd1) 27... Nd6 {[%emt 0:01:56]} 28. c4 {[%emt 0:00:00]} (28. Ne1 $15) 28... Rf5 $17 {[%emt 0:05:07] Black is more active.} 29. f4 {[%emt 0:08:00]} (29. cxd5 $17 Rxd5 (29... Rxf2 30. Ne4 $17) 30. Nf1 Nxb5 (30... Rxb5 $2 31. Rxd6 Qxd6 32. Qxb5 $18) 31. Rxd5 Rxd5 32. e4) 29... dxc4 {[%emt 0:01:07]} 30. Nxc4 {[%emt 0:00:00] [#]} Nxb5 {[%emt 0:01:46]} (30... Ne4 $1 $17 31. Rxd8+ Qxd8) 31. Ne5 $11 {[%emt 0:00:00]} Rxd1+ {[%emt 0:00:45]} 32. Qxd1 {[%emt 0:00:00]} Rxe5 {[%emt 0:04:08]} 33. fxe5 {[%emt 0:00:00]} Qxe5 {[%emt 0:00:07][%cal Ob5c3]} 34. Qd8+ {[%emt 0:00:00]} Bf8 {[%emt 0:00:55][%cal Ob5c3]} 35. Rc4 {[%emt 0:00:32]} ({Better is} 35. Qd7 $15) 35... Kg7 $17 {[%emt 0:03:52]} 36. Rg4 {[%emt 0:00:57]} (36. Qd7 $142) 36... Be7 {[%emt 0:00:12]} 37. Qd3 {[%emt 0:00:37]} f5 {[%emt 0:00:34] Prevents Re4.} (37... Nd6 $19 {White must now prevent ...c5.} 38. e4 Qc5+ 39. Ne3 Nc4 40. Qxc4 Qxe3+ 41. Kg2 Qd2+ 42. Kf3 Qd1+ 43. Qe2 Qxe2+ 44. Kxe2 Kf6 45. e5+ Kxe5) 38. Rc4 $11 {[%emt 0:01:06]} Bd6 {[%emt 0:01:40][%cal Og7f6]} (38... Bc5 {seems wilder.} 39. Qd7+ Kf6 40. Rc2 Kg6) 39. e4 $2 {[%emt 0:00:53][%mdl 8192] This move loses the game for White.} (39. g4 $11) 39... Bc5+ $19 {[%emt 0:00:20]} ({Not} 39... Qxg3 40. Qxg3 Bxg3 41. exf5 $17) 40. Kh2 {[%emt 0:00:00]} (40. Rxc5 $142 Qxc5+ 41. Ne3) 40... Nd6 {[%emt 0:00:00]} 41. Rc1 {[%emt 0:04:40]} (41. Rxc5 $142 Qxc5 (41... bxc5 42. exf5 Nxf5 43. Qd7+ Kf6 44. Qd8+ Kg6 45. Qg8+ Kh5 46. Qb3 $19) 42. exf5) 41... Nxe4 {[%emt 0:06:05]} 42. Qf3 {[%emt 0:00:16]} Bf2 {[%emt 0:02:34][%cal Rf2g3]} 43. Ne3 {[%emt 0:00:13]} Bxg3+ {[%emt 0:09:43]} 44. Kg2 {[%emt 0:03:19]} f4 {[%emt 0:04:18]} 45. Nd1 {[%emt 0:09:05]} (45. Rxc7+ Qxc7 46. Nf5+ Kf6 47. Qxe4) 45... Nf6 {[%emt 0:01:13] [#] ( -> ...g4)} 46. Qc6 {[%emt 0:05:00]} Qe2+ {[%emt 0:00:40]} 47. Kg1 {[%emt 0:00:01]} f3 {[%emt 0:00:29] Weighted Error Value: White=0.68/Black=0.34  Loses game:     	White=1     	---        Mistake:       	White=9     	Black=2      Inaccurate:     	White=4     	Black=7      OK:         	White=6     	Black=7      Best:        	White=1     	Black=5} 0-1

[Event "EICC 2025"]
[Site "Eforie-Nord"]
[Date "2025.03.17"]
[Round "3.10"]
[White "Blohberger, Felix"]
[Black "Chigaev, Maksim"]
[Result "1/2-1/2"]
[Annotator "TA"]
[ECO "D74"]
[WhiteElo "2534"]
[BlackElo "2629"]
[PlyCount "43"]
[EventDate "2025.03.14"]
[EventType "swiss"]
[EventCountry "ROU"]
[SourceTitle "playchess.com"]
[Source "ChessBase"]
[SourceQuality "1"]
[TimeControl "40/5400+30:1800+30"]

{[%evp 14,24,9,21,16,22,31,33,15,22,22,3,0]} 1. d4 {[%emt 0:00:04]} Nf6 {[%emt 0:00:17]} 2. c4 {[%emt 0:00:17]} g6 {[%emt 0:00:22]} 3. g3 {[%emt 0:00:04]} Bg7 {[%emt 0:01:08]} 4. Bg2 {[%emt 0:00:12]} O-O {[%emt 0:00:09]} 5. Nc3 {[%emt 0:00:03]} Nc6 {[%emt 0:00:17]} 6. Nf3 {[%emt 0:08:17]} d5 {[%emt 0:00:46]} 7. cxd5 {[%emt 0:02:09]} Nxd5 {[%emt 0:00:44]} 8. O-O {[%emt 0:00:25]} e5 {[%emt 0:00:12][%cal Re5d4,Be7e5,Be5e4][%mdl 32] D74: Fianchetto Grünfeld: Main Line (5 Nf3 0-0 6 cxd5 Nxd5 7 0-0).} 9. Nxd5 {[%emt 0:01:19] dxe5 would now be deadly.} e4 {[%emt 0:00:07] [#]} 10. Ne5 $1 {[%emt 0:03:19]} Qxd5 {[%emt 0:00:11]} 11. Nxc6 {[%emt 0:00:30]} Qxc6 {[%emt 0:00:13]} 12. Bf4 {[%emt 0:14:03]} Bg4 {[%emt 0:10:37] An uneventful encounter.   OK:         	White=3     	Black=3} 13. h3 $146 Be6 14. Rc1 Qd5 15. Rxc7 Rac8 16. Rxc8 Rxc8 17. b3 Bxd4 18. e3 Bg7 19. Qxd5 Bxd5 20. Rd1 Bc6 21. h4 Bf6 22. Bh3 {½-½ Kuzubov,Y (2660)-Erdos,V (2604) ROM-chT Sovata 2018 (3.5)} 1/2-1/2

[Event "EICC 2025"]
[Site "Eforie-Nord"]
[Date "2025.03.17"]
[Round "3.11"]
[White "Sanal, Vahap"]
[Black "Lazov, Toni"]
[Result "1/2-1/2"]
[Annotator "TA"]
[ECO "D04"]
[WhiteElo "2557"]
[BlackElo "2400"]
[PlyCount "127"]
[EventDate "2025.03.14"]
[EventType "swiss"]
[EventCountry "ROU"]
[SourceTitle "playchess.com"]
[Source "ChessBase"]
[SourceQuality "1"]
[TimeControl "40/5400+30:1800+30"]

{[%evp 11,127,8,10,0,7,0,5,8,13,14,16,0,0,0,0,2,0,0,0,0,0,0,0,0,0,0,0,0,0,0,0,7,0,0,0,0,0,0,0,0,0,0,0,0,0,0,0,0,0,0,0,0,0,0,0,0,0,0,0,0,0,0,0,0,0,-4,-6,-7,0,-11,0,0,0,0,0,0,0,0,0,0,0,0,0,0,0,0,0,-3,0,0,0,0,0,0,0,0,0,0,0,0,0,0,0,0,0,0,0,0,0,0,0,0,0,0,0,0,0,0]} 1. d4 {[%emt 0:00:03]} Nf6 {[%emt 0:01:39]} 2. Nf3 {[%emt 0:00:24]} g6 {[%emt 0:00:15]} 3. Nbd2 {[%emt 0:00:21]} d5 {[%emt 0:02:23]} 4. b3 {[%emt 0:01:35]} Bg7 {[%emt 0:02:20]} 5. Bb2 {[%emt 0:00:17]} O-O {[%emt 0:00:09]} 6. e3 {[%emt 0:00:05]} Nbd7 {[%emt 0:11:42][%cal Bb8d7,Bd7c5,Bc5e4,Be4d2][%mdl 32] The position is equal.} 7. c4 {[%emt 0:00:53] 7.Be2 is becoming the main line. D04: Colle System.} c5 {[%emt 0:00:29]} 8. Be2 {[%emt 0:02:47]} b6 {[%emt 0:05:41]} 9. O-O {[%emt 0:00:15]} Bb7 {[%emt 0:00:43]} 10. Rc1 {[%emt 0:00:29]} Rc8 {[%emt 0:04:51]} 11. dxc5 {[%emt 0:07:43]} Nxc5 {[%emt 0:03:07]} 12. b4 {[%emt 0:04:50]} Nce4 {[%emt 0:10:54]} 13. Qb3 $146 {[%emt 0:17:16][%cal Oc4c5]} (13. Qa4 a5 14. bxa5 bxa5 15. Rfd1 Nxd2 16. Nxd2 Bc6 17. Qa3 e6 18. Nb3 a4 19. Nd4 {1-0 Eldridge,M (2350)-Tanni,K (2308) RUS Pearl-3 email 2011}) 13... Nxd2 {[%emt 0:08:21]} 14. Nxd2 {[%emt 0:00:26]} dxc4 {[%emt 0:06:41]} 15. Nxc4 {[%emt 0:02:54]} Qd5 {[%emt 0:03:18][%csl Gb7][%cal Rd5g2] [#]} 16. Bf3 {[%emt 0:02:31] Successful Defense White} Ne4 {[%emt 0:00:02]} 17. Bxg7 {[%emt 0:02:17]} Kxg7 {[%emt 0:00:02]} 18. h3 {[%emt 0:16:31]} h5 {[%emt 0:12:02]} 19. Qb2+ {[%emt 0:09:35]} f6 {[%emt 0:00:34]} 20. Nd2 {[%emt 0:05:07]} Qxd2 {[%emt 0:05:26]} 21. Qxd2 {[%emt 0:00:20]} Nxd2 {[%emt 0:00:02]} 22. Bxb7 {[%emt 0:00:12]} Rb8 {[%emt 0:00:24]} 23. Rfd1 {[%emt 0:00:36]} Rxb7 {[%emt 0:00:03]} 24. Rxd2 $11 {[%emt 0:00:07][%mdl 4096] Endgame KRR-KRR} b5 {[%emt 0:09:52]} 25. Rdc2 {[%emt 0:12:52]} a5 {[%emt 0:04:53]} 26. Rc7 {[%emt 0:02:48]} Rxc7 {[%emt 0:00:09]} 27. Rxc7 {[%emt 0:00:02] KR-KR} Kf7 {[%emt 0:01:45]} 28. a3 {[%emt 0:00:02]} Rd8 {[%emt 0:01:48]} 29. bxa5 {[%emt 0:04:29]} Ra8 {[%emt 0:00:07]} 30. Kf1 {[%emt 0:00:10]} Rxa5 {[%emt 0:00:06]} 31. Rc3 {[%emt 0:00:06]} Ke6 {[%emt 0:01:27]} 32. Ke2 {[%emt 0:00:16]} Kd6 {[%emt 0:02:10]} 33. Kd2 {[%emt 0:01:20]} Ra4 {[%emt 0:01:14]} 34. Rd3+ {[%emt 0:00:09]} Kc6 {[%emt 0:00:38]} 35. Rc3+ {[%emt 0:00:26]} Kd6 {[%emt 0:00:01]} 36. Rb3 {[%emt 0:02:00]} Kc5 {[%emt 0:00:49]} 37. Kd3 {[%emt 0:01:27]} h4 {[%emt 0:00:51]} 38. Rc3+ {[%emt 0:00:43]} Kd6 {[%emt 0:01:09]} 39. Rb3 {[%emt 0:00:55]} Kc5 {[%emt 0:00:08]} 40. g3 {[%emt 0:03:06]} hxg3 {[%emt 0:01:41]} 41. fxg3 {[%emt 0:30:03]} g5 {[%emt 0:05:50]} 42. Rc3+ {[%emt 0:00:00]} Kd6 {[%emt 0:02:03]} 43. Rb3 {[%emt 0:00:00]} Kc5 {[%emt 0:00:07]} 44. Ke2 {[%emt 0:00:00]} Kd6 {[%emt 0:11:48]} 45. Kf3 {[%emt 0:00:00]} e6 {[%emt 0:00:32]} 46. Rd3+ {[%emt 0:00:00]} Ke7 {[%emt 0:00:01]} 47. Rb3 {[%emt 0:00:00]} Kd6 {[%emt 0:00:01]} 48. Kf2 {[%emt 0:00:00]} f5 {[%emt 0:00:36]} 49. Ke2 {[%emt 0:00:00]} Ra8 {[%emt 0:01:28]} 50. Kf3 {[%emt 0:00:00]} Ra4 {[%emt 0:01:05]} 51. Rxb5 {[%emt 0:00:00]} Rxa3 {[%emt 0:00:10]} 52. g4 {[%emt 0:00:00]} f4 {[%emt 0:02:35]} 53. Rxg5 {[%emt 0:00:00]} e5 {[%emt 0:02:21]} 54. h4 {[%emt 0:00:00]} Rxe3+ {[%emt 0:00:14]} 55. Kf2 {[%emt 0:00:00]} Kd5 {[%emt 0:03:56]} 56. h5 {[%emt 0:00:00] [#] and h6 would now be decisive} Rh3 {[%emt 0:00:33]} 57. Kg2 {[%emt 0:00:00]} Rh4 {[%emt 0:00:13]} 58. Kf3 {[%emt 0:00:00]} Rh3+ {[%emt 0:00:57]} 59. Kg2 {[%emt 0:00:00]} Rh4 {[%emt 0:00:04]} 60. Kf3 {[%emt 0:00:00]} Kd4 {[%emt 0:01:42]} 61. Rg6 {[%emt 0:00:00]} Rh3+ {[%emt 0:00:08]} 62. Kg2 {[%emt 0:00:00]} Rh4 {[%emt 0:00:27] aiming for ...Ke3.} 63. Kf3 {[%emt 0:00:00]} Rh3+ {[%emt 0:00:20]} 64. Kg2 {[%emt 0:00:00] An interesting draw.   Weighted Error Value: White=0.01 (flawless) /Black=0.00 (flawless)   OK:         	White=23    	Black=22     Best:        	White=5     	Black=2} 1/2-1/2

[Event "EICC 2025"]
[Site "Eforie-Nord"]
[Date "2025.03.17"]
[Round "3.11"]
[White "Boyer, Mahel"]
[Black "Sargissian, Gabriel"]
[Result "1/2-1/2"]
[Annotator "TA"]
[ECO "D02"]
[WhiteElo "2529"]
[BlackElo "2628"]
[PlyCount "85"]
[EventDate "2025.03.14"]
[EventType "swiss"]
[EventCountry "ROU"]
[SourceTitle "playchess.com"]
[Source "ChessBase"]
[SourceQuality "1"]
[TimeControl "40/5400+30:1800+30"]

{[%evp 11,85,0,14,11,13,0,3,6,8,1,18,0,0,0,-4,0,0,0,0,0,31,16,13,20,16,0,0,0,0,0,14,0,0,0,0,0,0,0,0,-20,-18,-45,-24,-23,-28,-20,-30,-34,-34,-42,-22,-35,0,0,0,0,0,0,0,0,0,0,0,0,0,0,0,0,0,0,0,0,0,0,0,0]} 1. Nf3 {[%emt 0:01:27]} d5 {[%emt 0:00:14]} 2. g3 {[%emt 0:00:25]} g6 {[%emt 0:02:48]} 3. Bg2 {[%emt 0:01:14]} Bg7 {[%emt 0:00:15]} 4. d4 {[%emt 0:03:58]} Nf6 {[%emt 0:02:18]} 5. O-O {[%emt 0:00:05]} O-O {[%emt 0:00:07]} 6. c3 {[%emt 0:00:04]} c6 {[%emt 0:02:24]} 7. a4 {[%emt 0:00:56] D02: 1 d4 d5 2 Nf3 sidelines, including 2...Nf6 3 g3 and 2...Nf6 3 Bf4.} a5 $1 {[%emt 0:04:09] 7...a5 is better than 7...Bf5.} 8. Bf4 {[%emt 0:00:07]} Bf5 {[%emt 0:05:19]} 9. Nbd2 {[%emt 0:00:17]} Nbd7 {[%emt 0:02:31]} 10. h3 {[%emt 0:00:05]} Ne4 {[%emt 0:04:04]} 11. Nh4 $146 {[%emt 0:22:12]} (11. g4 Nxd2 12. Nxd2 Be6 13. Bg3 f5 14. gxf5 Bxf5 15. e4 dxe4 16. Nxe4 Kh8 17. Qb3 Bxe4 18. Bxe4 {1-0 Matlakov,M (2674)-Lobanov,S (2512) St Petersburg Blitz 2021 (20)}) 11... Be6 {[%emt 0:01:08]} 12. Nxe4 {[%emt 0:07:19]} dxe4 {[%emt 0:00:24]} 13. Bxe4 {[%emt 0:00:11]} Bxh3 {[%emt 0:01:04]} 14. Bg2 {[%emt 0:02:16]} Bxg2 {[%emt 0:00:18]} 15. Kxg2 {[%emt 0:01:46]} Nf6 {[%emt 0:14:21]} 16. Qb3 {[%emt 0:01:42]} Qd5+ {[%emt 0:02:35]} 17. Qxd5 {[%emt 0:00:21]} Nxd5 {[%emt 0:00:41]} 18. e4 {[%emt 0:08:34]} Nxf4+ {[%emt 0:11:31]} 19. gxf4 {[%emt 0:00:06]} b5 {[%emt 0:00:23]} 20. Nf3 {[%emt 0:07:48]} Rfc8 {[%emt 0:14:40]} 21. Rh1 {[%emt 0:03:47]} e6 {[%emt 0:01:32]} 22. e5 {[%emt 0:00:53]} Bf8 {[%emt 0:04:14]} 23. Ng5 {[%emt 0:06:14]} h5 {[%emt 0:00:09]} 24. Ne4 {[%emt 0:00:03]} Be7 {[%emt 0:03:36]} 25. Ra2 {[%emt 0:03:37]} b4 {[%emt 0:01:05]} 26. c4 {[%emt 0:03:23]} Rd8 {[%emt 0:00:53]} (26... b3 $5 27. Raa1 $8 Rab8 $19) 27. Rd1 {[%emt 0:00:39]} b3 $1 {[%emt 0:00:58]} 28. Raa1 {[%emt 0:00:05]} Rab8 {[%emt 0:00:12]} 29. c5 {[%emt 0:01:41]} Rb4 {[%emt 0:03:43]} 30. Nd6 {[%emt 0:00:06]} Rdb8 {[%emt 0:04:16]} 31. Kf3 {[%emt 0:05:15]} Kf8 {[%emt 0:00:12]} 32. Ke3 {[%emt 0:01:06] The position is equal.} Bxd6 {[%emt 0:01:43]} 33. cxd6 $11 {[%emt 0:07:13][%mdl 4096] [#] Endgame KRR-KRR} Rc4 {[%emt 0:00:08]} 34. Ra3 {[%emt 0:10:29]} Rc2 {[%emt 0:02:52]} 35. Rd2 {[%emt 0:00:17]} Rb4 {[%emt 0:00:26]} 36. Rxc2 $1 {[%emt 0:00:41]} bxc2 {[%emt 0:00:10] KR-KR} 37. Kd2 {[%emt 0:00:08]} ({But not} 37. Rc3 $2 Rb3 38. Rxb3 c1=Q+ $19 (38... c1=B+ $2 {perishes.} 39. Ke2 $18)) 37... Rxd4+ {[%emt 0:03:20]} 38. Kxc2 {[%emt 0:00:04]} Rxf4 {[%emt 0:00:34]} 39. Rb3 $1 {[%emt 0:01:26] [#]} Rxf2+ {[%emt 0:01:09]} (39... Ke8 $5 40. Rb8+ $8 Kd7 $11) 40. Kc1 {[%emt 0:01:05] Hoping for Rb8+.} Ke8 {[%emt 0:01:35]} 41. Rb8+ {[%emt 0:02:54]} Kd7 {[%emt 0:00:09]} 42. Rb7+ {[%emt 0:02:52]} Kd8 {[%emt 0:03:24] and ...Rf5 would now be decisive} 43. Rb8+ {[%emt 0:01:15] Weighted Error Value: White=0.04 (flawless) /Black=0.04 (flawless)   Inaccurate:     	White=1     	Black=2      OK:         	White=15    	Black=14     Best:        	White=4     	---        Strong:       	White=2     	Black=1} 1/2-1/2

[Event "EICC 2025"]
[Site "Eforie-Nord"]
[Date "2025.03.17"]
[Round "3.12"]
[White "Iskandarov, Misratdin"]
[Black "Maurizzi, Marc`Andria"]
[Result "1-0"]
[Annotator "TA"]
[ECO "B30"]
[WhiteElo "2524"]
[BlackElo "2622"]
[PlyCount "75"]
[EventDate "2025.03.14"]
[EventType "swiss"]
[EventCountry "ROU"]
[SourceTitle "playchess.com"]
[Source "ChessBase"]
[SourceQuality "1"]
[TimeControl "40/5400+30:1800+30"]

{[%evp 12,75,-19,-19,-14,-12,-10,-24,-21,-44,-51,-37,-22,-50,0,-7,0,-8,0,-10,-7,-11,21,31,25,36,25,30,54,24,22,27,32,20,27,28,22,31,42,36,76,83,100,89,97,92,83,88,77,14,11,2,54,63,143,151,146,141,272,293,617,626,1089,1076,29996,350]} 1. e4 {[%emt 0:00:04]} c5 {[%emt 0:01:19]} 2. Nf3 {[%emt 0:00:16]} Nc6 {[%emt 0:00:55]} 3. Bb5 {[%emt 0:00:47]} e6 {[%emt 0:01:06]} 4. Bxc6 {[%emt 0:00:09]} bxc6 {[%emt 0:00:08]} 5. d3 {[%emt 0:00:04]} Ne7 {[%emt 0:06:55]} 6. O-O {[%emt 0:03:37]} Ng6 {[%emt 0:17:11]} 7. Ng5 {[%emt 0:21:47]} f6 {[%emt 0:07:44] 7...e5 is not played anymore. Wards off f4. B30: Sicilian: 2...Nc6 3 Bb5, lines without ...g6.} 8. Nh3 {[%emt 0:00:30]} Be7 {[%emt 0:03:56]} 9. f4 {[%emt 0:02:39]} O-O {[%emt 0:00:32] Black has an edge.} 10. c4 {[%emt 0:05:45]} f5 {[%emt 0:10:17]} 11. Nc3 {[%emt 0:01:06][%cal Bb1c3,Bc3e4,Be4g3][%mdl 32]} d6 {[%emt 0:04:00]} 12. Qe2 $146 {[%emt 0:08:31]} (12. exf5 Rxf5 13. Ne4 d5 14. Ng3 Rf8 15. Qe2 Bf6 16. Be3 Rb8 17. Rab1 Qe7 18. b3 {½-½ Nevednichy,V (2555)-Nedev,T (2481) Olympiad-35 Bled 2002 (3.3)}) 12... e5 {[%emt 0:03:43]} 13. exf5 $1 {[%emt 0:01:28]} Bxf5 {[%emt 0:01:56]} 14. g4 {[%emt 0:01:22]} Bc8 {[%emt 0:00:45]} 15. f5 {[%emt 0:00:16]} Nh4 {[%emt 0:00:11][%cal Oh7h5] next ...h5! is good for Black.} 16. Ne4 {[%emt 0:03:56]} h5 {[%emt 0:10:19] and ...hxg4 should not be overlooked} 17. Ng3 {[%emt 0:03:22]} Qe8 {[%emt 0:14:53]} 18. Nxh5 {[%emt 0:07:50]} (18. gxh5 $2 Nxf5 (18... Bxf5 19. Nxf5 Rxf5 20. Rxf5 $11) 19. Nxf5 Bxf5 $17 (19... Rxf5 20. Rxf5 Bxf5 21. Nf2 $17)) 18... g6 {[%emt 0:07:53]} 19. Ng3 {[%emt 0:02:20]} gxf5 {[%emt 0:00:03]} 20. gxf5 {[%emt 0:00:07]} Nxf5 {[%emt 0:01:45]} 21. Nxf5 {[%emt 0:00:13]} (21. Qg4+ $2 Ng7 22. Rxf8+ Qxf8 $19) 21... Rxf5 {[%emt 0:00:31]} 22. Qg2+ {[%emt 0:00:14]} Kh8 {[%emt 0:01:07]} 23. Bg5 {[%emt 0:01:41]} Bxg5 {[%emt 0:04:10]} 24. Nxg5 {[%emt 0:00:14]} Qg6 {[%emt 0:00:10]} 25. h4 {[%emt 0:15:16]} (25. Qxc6 $2 Rxg5+ 26. Kf2 Rb8 $19) (25. Qh3+ Kg7 26. Rxf5 Bxf5 $17) 25... Rb8 {[%emt 0:00:00]} 26. b3 {[%emt 0:00:42]} (26. Qxc6 $2 Bb7 27. Rxf5 Bxc6 $19) 26... Bd7 {[%emt 0:00:39][%cal Bc8d7,Bd7f5,Bf5d3][%mdl 32]} 27. Rxf5 {[%emt 0:00:17]} Bxf5 {[%emt 0:00:01]} 28. Rf1 $1 {[%emt 0:00:23]} Bxd3 {[%emt 0:00:22]} 29. Rf7 {[%emt 0:01:39] Strongly threatening Rh7+.} Qh5 {[%emt 0:01:11]} 30. Rf6 {[%emt 0:02:05] White is more active.} ({Better is} 30. Qf2 $16 {Qf6+ would kill now.} Qg4+ 31. Kh2) 30... Rg8 $11 {[%emt 0:00:49]} 31. Qg3 {[%emt 0:00:20][%cal Og1g2][%mdl 1024] White has compensation.} Qd1+ {[%emt 0:00:19]} (31... Rg6 $11 32. Qf2 Qd1+ 33. Kg2 Qc2 34. Rf8+ Kg7) 32. Kh2 $14 {[%emt 0:00:06]} Bg6 {[%emt 0:00:21]} (32... Rg6 $1 $14 33. Rf3 Qe2+ 34. Rf2 Qh5) 33. Nf7+ $40 {[%emt 0:07:03][%mdl 128] White is out for blood.} Kh7 {[%emt 0:00:01] [#]} 34. Qe3 $1 {[%emt 0:00:57] Really sharp!} Qh5 {[%emt 0:01:19] Dodges Qh6+} (34... Kg7 $16 {was necessary.} 35. Rxd6 Qc2+ 36. Rd2 Qe4 37. Qxe4 (37. Qxc5 $2 Qf4+ 38. Kg1 Qxd2 $19) 37... Bxe4 38. Nxe5 Kh6) 35. Ng5+ $18 {[%emt 0:00:07]} Kh8 $2 {[%emt 0:00:50]} (35... Kg7 36. Qf2 Rh8 37. Ne6+ Kh7) 36. Qf2 $1 {[%emt 0:00:35]} Be8 {[%emt 0:00:36] [#]} 37. Re6 $1 {[%emt 0:01:18]} e4 {[%emt 0:00:31]} (37... Rxg5 38. Qf8+) 38. Qf6+ {[%emt 0:00:14] Weighted Error Value: White=0.05 (flawless) /Black=0.72  Mistake:       	White=1     	Black=4      Inaccurate:     	White=2     	Black=4      OK:         	White=11    	Black=9      Best:        	White=5     	Black=4      Strong:       	White=4     	---} ({Not} 38. Nxe4 Bf7 39. Qf6+ (39. Rxd6 $2 {is the wrong capture.} Qe5+ 40. Ng3 Qxd6 $19) 39... Rg7 40. Qh6+ (40. Rxd6 Qe2+ 41. Nf2 Kg8 $18) 40... Qxh6 41. Rxh6+ Kg8 42. Rxd6 (42. Nxd6 Bg6 $18) 42... Bg6 $18) 1-0